Cogmind - Beta 14 @@@ ROGUE MODE // 2024.10.03 @ 01:20:51 Player: Cereal Killer Result: Destroyed by 8R-AWN with 8R-AWN's Boregun Performance ------------- Evolutions (0) 0 Regions Visited (3) 600 Robots Destroyed (9) 45 Value Destroyed (69) 69 Prototype IDs (1) 20 Alien Tech Used (0) 0 Bonus (-182) -182 TOTAL SCORE: 552 Bonus ------- Follower Combat Kills 53 Friendly Fire -235 Cogmind --------- Core Integrity 0/250 Matter 280/300 Energy 73/250 System Corruption 2% Temperature Cool (0) Movement Treading (240) Ox1 Location -10/Exiles Parts ------- > --- POWER (1) -------- Ion Engine > --- PROPULSION (2) --- Light Treads > --- UTILITY (2) ------ Medium Storage Unit System Purifier > --- WEAPON (2) ------- Makeshift Spear > --- INVENTORY (10) --- Wheel Weapon Shielding EX Chip 1 EX Chip 2 Light Assault Rifle Peak State ------------ > --- POWER ------------ Ion Engine > --- PROPULSION ------- Wheel Compact Wheel > --- UTILITY ---------- Medium Storage Unit System Purifier > --- WEAPON ----------- Assault Rifle Makeshift Spear > --- INVENTORY -------- Ion Engine Light Treads Light Treads Wheel Weapon Shielding EX Chip 1 EM Pulse Gun EM Pulse Gun Light Assault Rifle [Rating: 19] Favorites ----------- Power Ion Engine Engine Ion Engine Propulsion Wheel Treads Light Treads Wheel Wheel Utility Medium Storage Unit Device System Purifier Storage Medium Storage Unit Processor Targeting Computer Weapon Assault Rifle Energy Gun EM Pulse Gun Ballistic Gun Assault Rifle Piercing Weapon Makeshift Spear Build | -11 -10 -10 -10 ------- Run | Yrd Mat Min Exi Slots Evolved . | . . . . Power . | . . . . Propulsion . | . . . . Utility . | . . . . Weapon . | . . . . Parts Attached 16 | 6 1 1 8 Power 2 | 1 . . 1 Engine 2 | 1 . . 1 Core . | . . . . Reactor . | . . . . Propulsion 4 | 2 . . 2 Treads 2 | . . . 2 Leg . | . . . . Wheel 2 | 2 . . . Hover . | . . . . Flight . | . . . . Utility 4 | 1 1 1 1 Device 1 | . . . 1 Storage 2 | 1 1 . . Processor 1 | . . 1 . Hackware . | . . . . Protection . | . . . . Artifact . | . . . . Weapon 6 | 2 . . 4 Energy Gun 2 | . . . 2 Energy Cannon . | . . . . Ballistic Gun 2 | 2 . . . Ballistic Cannon . | . . . . Launcher . | . . . . Special Weapon . | . . . . Impact Weapon . | . . . . Slashing Weapon . | . . . . Piercing Weapon 2 | . . . 2 Special Melee Weapon . | . . . . Unidentified Prototypes 1 | . . . 1 Parts Lost 8 | . . 1 7 Power 1 | . . . 1 Propulsion 3 | . . . 3 Utility 1 | . . 1 . Weapon 3 | . . . 3 Highest Loss Streak 7 | . . 1 7 To Critical Strikes 3 | . . . 3 Average Slot Usage (%) 91 | . 85 95 86 Engine 14 | . 14 14 14 Wheel 26 | . 28 28 22 Device 1 | . . . 5 Storage 14 | . 14 14 14 Processor 5 | . . 10 . Ballistic Gun 23 | . 28 28 10 Piercing Weapon 2 | . . . 12 Peak Build Rating 19 | 6 7 8 19 Average Rating 7 | 4 6 7 12 On Entrance 4 | . 6 6 7 Naked Turns . | . . . . Heaviest Build 23 | 13 18 18 23 Greatest Support 40 | 26 26 26 40 Greatest Overweight (x) 2 | . . . 2 Average Overweight (x) . | . . . . Largest Inventory Capacity 10 | 8 10 10 10 Average Capacity 9 | 7 8 10 10 Most Carried 10 | 4 7 8 10 Average Carried 6 | 2 5 7 8 Final Capacity 10 | 8 10 10 10 Final Carried 8 | 4 6 8 5 Class Distribution -------------------- 100% | Mutant Dominant Class ---------------- Mutant | -10/Materials Mutant | -10/Mines Mutant | -10/Exiles Resources | -11 -10 -10 -10 ----------- Run | Yrd Mat Min Exi Matter Collected 429 | 260 34 105 30 Remotely . | . . . . Salvage Created 231 | . 69 73 89 Parts 26 | . 5 11 10 Haulers Intercepted 1 | . 1 . . Recyclers Shooed 1 | . 1 . . Parts Field Recycled . | . . . . Retrieved Matter . | . . . . Parts Self-Destructed . | . . . . Prevented . | . . . . Kills | -11 -10 -10 -10 ------- Run | Yrd Mat Min Exi Combat Hostiles Destroyed 9 | . . 5 4 Melee 4 | . . . 4 Guns 5 | . . 5 . Classes Destroyed 5 | . 2 2 1 Worker 1 | . 1 . . Builder 1 | . . 1 . Hauler 1 | . 1 . . Swarmer 5 | . . 5 . Assembled 4 | . . . 4 Best Kill Streak 4 | . 1 2 4 Combat Bots Only 4 | . . 2 4 Max Kills in Single Turn 1 | . 1 1 1 Gunslinging . | . . . . Exploded . | . . . . Melee 1 | . . . 1 Uniques/NPCs Destroyed 1 | . . . 1 EX-BIN (-10/Exiles) Combat | -11 -10 -10 -10 -------- Run | Yrd Mat Min Exi Hostile Shots Fired 105 | . 6 34 65 Missed 31 | . 3 12 16 Damage Taken 1010 | . 27 238 745 Core 259 | . . 36 223 Absorbed by Shields . | . . . . Core Remaining (%) 100 | 100 . . . Volleys Fired 33 | . 11 20 2 Largest 2 | . 2 2 2 Hottest 80 | . 40 40 80 Shots Fired 66 | . 22 40 4 Gun 66 | . 22 40 4 Cannon . | . . . . Launcher . | . . . . Special . | . . . . Kinetic 62 | . 22 40 . Thermal . | . . . . Explosive . | . . . . Electromagnetic 4 | . . . 4 Robot Hit Streak 5 | . 5 4 3 Robot Miss Streak 3 | . 1 3 1 Penetration Max . | . . . . Secondary Targets 1 | . . 1 . Max Gunslinging Chain 1 | . . 1 . Shots Hit Robots 41 | . 8 21 12 Core Hits 24 | . 4 14 6 Critical Kills . | . . . . Critical Parts Destroyed . | . . . . Critical Strikes 1 | . . . 1 Corrupt 1 | . . . 1 Melee Attacks 15 | . . . 15 Impact . | . . . . Slashing . | . . . . Piercing 15 | . . . 15 Sneak Attacks 2 | . . . 2 Combat Hostiles . | . . . . Follow-up Attacks . | . . . . Damage Inflicted 794 | . 185 263 346 Guns 369 | . 103 263 3 Cannons . | . . . . Explosions 82 | . 82 . . Melee 343 | . . . 343 Ramming . | . . . . Kinetic 366 | . 103 263 . Thermal . | . . . . Explosive 82 | . 82 . . Electromagnetic 3 | . . . 3 Impact . | . . . . Slashing . | . . . . Piercing 343 | . . . 343 Highest Corruption 3 | . . . 3 Average Corruption 2 | . . . 2 Corruption Purged 1 | . . . 1 Corruption Blocked . | . . . . Effects 2 | . . . 2 Message Errors 1 | . . . 1 Energy Discharges 1 | . . . 1 Overload Shots . | . . . . Overflow Damage 74 | . 2 . 72 Projectiles . | . . . . Explosions 2 | . 2 . . Melee 72 | . . . 72 Knockbacks . | . . . . Impact . | . . . . Kinetic . | . . . . Secondary . | . . . . Self-Inflicted Damage . | . . . . Shots . | . . . . Rammed . | . . . . Targets Rammed . | . . . . Kicked . | . . . . Crushed . | . . . . Highest Temperature 21 | . . 20 21 Average Temperature 16 | . . 20 14 Received Heat Transfer 60 | . . 40 20 Siege Activations . | . . . . Robots Corrupted . | . . . . Combat Hostiles . | . . . . Parts Fried . | . . . . Impact Corruptions . | . . . . Robots Melted . | . . . . Combat Hostiles . | . . . . Parts Melted . | . . . . Heat Transferred . | . . . . Parts Sabotaged . | . . . . Parts Stolen . | . . . . Parts Stripped . | . . . . Power Chain Reactions . | . . . . Alert | -11 -10 -10 -10 ------- Run | Yrd Mat Min Exi Peak Influence 244 | . 72 244 . Initial 27 | . . 27 . Average 106 | . 18 154 . Maximum Alert Level 1 | . . 1 . Low Security (%) 91 | 100 100 87 . Level 1 8 | . . 12 . Level 2 . | . . . . Level 3 . | . . . . Level 4 . | . . . . Level 5 . | . . . . High Security . | . . . . Max Security . | . . . . Squads Dispatched 1 | . 1 . . Investigation . | . . . . Extermination . | . . . . Reinforcement 1 | . 1 . . Assault . | . . . . Garrison . | . . . . Intercept . | . . . . Searches Triggered . | . . . . Construction Impeded . | . . . . Haulers Reinforced . | . . . . Active Scanning Responses . | . . . . Cargo Convoy Interrupts . | . . . . Stealth | -11 -10 -10 -10 --------- Run | Yrd Mat Min Exi Distress Signals . | . . . . Communications Jammed . | . . . . Distress Signals . | . . . . Times Spotted 35 | . 6 21 8 Peak Tracking Total 9 | . 6 7 9 Tactical Retreats 3 | . . 3 . Traps | -11 -10 -10 -10 ------- Run | Yrd Mat Min Exi Traps Triggered . | . . . . Indirectly . | . . . . Trap Hack Attempts . | . . . . Triggered . | . . . . Disarmed . | . . . . Reprogrammed . | . . . . Reused . | . . . . Traps Extracted . | . . . . Installed . | . . . . Triggered . | . . . . Machines | -11 -10 -10 -10 ---------- Run | Yrd Mat Min Exi Machines Disabled 2 | . 1 . 1 Max in Single Turn 1 | . 1 . . Machines Repaired . | . . . . Machines Dismantled . | . . . . Machines Sabotaged . | . . . . Overloaded Fab Kills . | . . . . Hacking | -11 -10 -10 -10 --------- Run | Yrd Mat Min Exi Machines Accessed 3 | . 3 . . Terminals 3 | . 3 . . Fabricators . | . . . . Repair Stations . | . . . . Recycling Units . | . . . . Scanalyzers . | . . . . Garrison Access . | . . . . Total Hacks 8 | . 8 . . Successful 4 | . 4 . . Failed 4 | . 4 . . Catastrophic 1 | . 1 . . Database Lockouts . | . . . . Manual 6 | . 6 . . Terminals 8 | . 8 . . Fabricators . | . . . . Repair Stations . | . . . . Recycling Units . | . . . . Scanalyzers . | . . . . Garrison Access . | . . . . Terminal Hacks 3 | . 3 . . Robot Analysis 1 | . 1 . . Locate Traps 1 | . 1 . . Zone Layout 1 | . 1 . . Fabricator Hacks . | . . . . Repair Station Hacks . | . . . . Recycling Unit Hacks . | . . . . Scanalyzer . | . . . . Garrison Access Hacks . | . . . . Unauthorized Hacks 1 | . 1 . . Terminals 1 | . 1 . . Botnet 1 | . 1 . . Fabricators . | . . . . Repair Stations . | . . . . Recycling Units . | . . . . Scanalyzers . | . . . . Garrison Access . | . . . . Data Cores Recovered . | . . . . Used . | . . . . Hacking Detections 3 | . 3 . . Full Trace Events 1 | . 1 . . Feedback Events . | . . . . Feedback Blocked . | . . . . Robot Schematics Acquired . | . . . . Robots Built . | . . . . Authchips . | . . . . Time . | . . . . Total Robot Build Rating . | . . . . Part Schematics Acquired . | . . . . Parts Built . | . . . . Authchips . | . . . . Time . | . . . . Total Part Build Rating . | . . . . Parts Repaired . | . . . . Time . | . . . . Parts Recycled . | . . . . Recycled Matter . | . . . . Retrieved Matter . | . . . . Retrieved Components . | . . . . Parts Scanalyzed . | . . . . Part Schematics Acquired . | . . . . Parts Damaged . | . . . . Bothacking | -11 -10 -10 -10 ------------ Run | Yrd Mat Min Exi Used RIF Installer . | . . . . Robots Hacked . | . . . . Non-combat . | . . . . Combat . | . . . . Robot Hacks Applied . | . . . . Relay Couplers Released . | . . . . Fabnet Peak Effective % . | . . . . Robots Rewired . | . . . . Allies Hacked . | . . . . Hacks Repelled . | . . . . Allies | -11 -10 -10 -10 -------- Run | Yrd Mat Min Exi Total Allies 5 | . . 5 . Largest Group 4 | . . 4 3 Highest-Rated Group 94 | . . 94 78 Highest-Rated Ally 31 | . . 31 31 Total Orders . | . . . . Ally Attacks 47 | . . 42 5 Total Damage 491 | . . 456 35 Kills 11 | . . 10 1 Allies Corrupted . | . . . . Allies Melted . | . . . . Intel | -11 -10 -10 -10 ------- Run | Yrd Mat Min Exi Robot Analysis Total 1 | . 1 . . Derelict Logs Recovered 1 | . . 1 . Drone Launches . | . . . . Drone Recoveries . | . . . . Exploration | -11 -10 -10 -10 ------------- Run | Yrd Mat Min Exi Turns Passed 768 | 79 120 402 167 Spaces Moved 614 | 71 95 345 103 Core 1 | 1 . . . Treads 1 | . . . 1 Legs . | . . . . Wheels 612 | 70 95 345 102 Hover . | . . . . Flight . | . . . . Fastest Speed 50 | 50 90 90 90 Average Speed 90 | 88 90 90 90 Slowest Speed 160 | 90 90 90 160 Overloaded Moves . | . . . . Propulsion Burnouts . | . . . . Robots Hopped . | . . . . Cave-ins Triggered . | . . . . Exploration Rate (%) 35 | 4 27 76 35 Regions Visited 3 Branch Regions 2 Pre-discovered Areas 1 | . . 1 . Known Exits Taken . | . . . . Unknown Exits Taken 3 | 1 1 1 . Scrap Searched 3 | . . 3 . Spaces Dug . | . . . . Terrain Destroyed 4 | . 4 . . Melee . | . . . . Projectile . | . . . . AOE 4 | . 4 . . Terrain Rammed . | . . . . Walls Destroyed . | . . . . Machines Disabled . | . . . . Actions | -11 -10 -10 -10 --------- Run | Yrd Mat Min Exi Total 752 | 86 110 400 156 Wait 54 | . . 29 25 Move 611 | 70 94 344 103 Hop . | . . . . Pick Up 20 | 10 3 4 3 Fast Attach . | . . . . Attach 14 | 6 1 1 6 Detach . | . . . . Swap 2 | . . . 2 Drop 2 | . 1 1 . Fire 33 | . 11 20 2 Melee 15 | . . . 15 Ram . | . . . . Kick . | . . . . Crush . | . . . . Escape Stasis . | . . . . Rewire 1 | . . 1 . Trap . | . . . . Miscellaneous . | . . . . Route ------- -11/Scrapyard -10/Materials -10/Mines (discovered 2 exits: [*Mat] / [*Exi]) -10/Exiles History --------- Turn | Location | Event 15 | -11/Scrapyard | Discovered new exit (range 16) 80 | -11/Scrapyard | Entered Materials 162 | -10/Materials | Discovered new exit (range 8) 200 | -10/Materials | Entered Mines 203 | -10/Mines | Escorted by a lone wolf Derelict 221 | -10/Mines | Assisted by bots powering up and referring to "LRC-V3" 223 | -10/Mines | Learned location of Storage (-7) 268 | -10/Mines | Discovered new exit (range 6) 310 | -10/Mines | Build established: Mutant 370 | -10/Mines | Assembled infested the area 412 | -10/Mines | A weapon hastily lodged in a ceiling crevice suddenly fell to the ground 432 | -10/Mines | Received a Mining Laser from a helpful Derelict 588 | -10/Mines | Deemed a non-threat by the Exiles lab entrance 589 | -10/Mines | Discovered new exit (range 5) 602 | -10/Mines | Entered Exiles 602 | -10/Exiles | Accompanied by 3 allies 635 | -10/Exiles | Met 8R-AWN 649 | -10/Exiles | Met EX-HEX 679 | -10/Exiles | Met EX-BIN 699 | -10/Exiles | Attacked by the Exiles 701 | -10/Exiles | Destroyed EX-BIN 705 | -10/Exiles | Found Prototype Device 706 | -10/Exiles | Identified System Purifier 747 | -10/Exiles | Core integrity fell below 50% 764 | -10/Exiles | Core integrity fell below 20% 769 | -10/Exiles | Destroyed by 8R-AWN with 8R-AWN's Boregun Last Messages --------------- 00760_ Penetrated by HV Slug. 00760_ Critical hit (Destroy). 00760_ EM Pulse Gun destroyed. 00760_ HV Slug penetrates Earth. 00762_ Penetrated by HV Slug. 00762_ HV Slug penetrates Earth. 00762_ Penetrated by HV Slug. 00762_ HV Slug penetrates Earth. 00763_ Earth collapses. 00764_ Penetrated by HV Slug. 00764_ HV Slug penetrates Wall. 00764_ Penetrated by HV Slug. 00764_ Critical hit (Destroy). 00764_ Lgt. Treads destroyed. 00764_ HV Slug penetrates Wall. 00766_ Penetrated by HV Slug. 00766_ HV Slug penetrates Wall. 00766_ Penetrated by HV Slug. 00766_ HV Slug penetrates Wall. 00769_ Penetrated by HV Slug. Map ----- +----------------------------------------------------+ | ?????????????????????????????????????????????????? | | ?????????????????????????????????????????????????? | | ?????????????????????????????????????????????????? | | ?????????????????????????????????????????????????? | | ?????????????????????????????????????????????????? | | ?????????????????????????????????????????????????? | | ?????????????????????????????????????????????????? | | ??????????????# ????????????????????????????????? | | ???????????? ## ????????????????????????????????? | | ????????????? ???????????????????????????????? | | ?????????????? ?????????????????????????????? | | ??????????????# ?????????????????????????????? | | ??????????????# ??######?????????????????????? | | ??????????????# ??#"""""""???????????????????? | | ??????????????# #?#"""""""#??????????????????? | | ??????????????# #?#"""""""#??????????????????? | | ?????????????## ###"" """"#??????????????????? | | ?????????????#" """"#??????????????????? | | ?????????????#" """#??????????????????? | | ?????????????#" """#??????????????????? | | ?????????????#" """#??????????????????? | | ?????????????#" !!! """#??????????????????? | | ?????????????#" =!%! """## ????????????????? | | ?????????????## ! a """"""????????????????? | | ??????????????# %g a"""#####??????????????? | | ??????????????#" %X@%""""" #?????????????? | | ??????????????#" "" # "????????????????? | | ??????????????#" "" " #??????????????????? | | ?????????????##" ########;;#??????????????????? | | ????????????##"" #???????# #??????????????????? | | ??????????###"" #????????# #?????????????????? | | ?????????"""""" ##????????# #????????????????? | | ????????"" " "" ##???###########????????????? | | ???????""" " #####"""""""""##???????????? | | ?????? " " """ """"##??????????? | | ???? "" " #??????????? | | ???? " """#??????????? | | ???? " "#??????????? | | ???? " "##?????????# | | ???? ""###???????# | | ????? """""" """#??????## | | ????? ######""" "#????### | | ?????? ""#?????#####""" ##???# | | ??????"?"#??????????##""" ##?## | | ?????????????????????#"""" ### | | ?????????????????????#"" | | ??????????????????????""" | | ?????????????????????? "" | | ????????????????????? #"""# | | ????????????????????? ###### | +----------------------------------------------------+ Best States ------------- Heat Dissipation 25 Energy Generation 10 Energy Capacity 250 Matter Stores 300 Matter Capacity 300 Sight Range 16 Terrain Scan Density 10 Evasion (%) 42 Targeting Accuracy 5 Recoil Reduction 2 Item Schematics ----------------- None Robot Schematics ------------------ None Fabricated ------------ Nothing Alien Tech Used ----------------- None Achievements -------------- None Challenges ------------ None Game ------ Seed GravmagThermicThrower Manual? 0 Play Time 00:13:00 Cumulative 219.8 hours Start 2024.10.03 @ 01:11:22 End 2024.10.03 @ 01:20:51 Sessions 1 Manual Loads 0 Difficulty Rogue Special Mode None Game No. 182 Rogue 173 Adventurer 9 Explorer 0 Win Type - Total 1 Types 1/0/0/0/0/0/0/0/0 Lore% 74 Gallery% 72 Achievement% 58 Wizard Run 0 Options --------- Layout 1 ASCII 0 Keyboard 0 Movement Numpad Keybinds 0 Fullscreen 1 Font 24/Smallcaps Map View 50x35 Zoom Use 0% Tactical HUD 1 Map Filters NONE Filters NONE Steam 1 RUN: 916bdeef-6003-4647-8914-98c62431c3e9